fUSD/lending_fUSD_20240119
["ID","MTS","AMOUNT","RATE_DAILY","PERIOD"]
[312131691,1705666239357,-3236.89,0.00022979,2]
[312131692,1705666239369,-2323.62,0.00022979,2]
[312131693,1705666239382,-3099.95,0.00022979,2]
[312131694,1705666239394,-1604.1,0.00022979,2]
[312131695,1705666239407,-3224.28,0.00022979,2]
[312131696,1705666239419,-626.86,0.00022979,2]
[312131697,1705666239431,-783.31,0.00022979,2]
[312131698,1705666239443,-3676.75,0.00022979,2]
[312131699,1705666239456,-1875.81,0.00022979,2]
[312131700,1705666239467,-838.41,0.00022979,2]
[312131701,1705666239479,-819.65,0.00022979,2]
[312131702,1705666239491,-993.83,0.00022979,2]
[312131703,1705666239510,-1210.28,0.00022979,2]
[312131704,1705666239522,-114826.56529838,0.0002298,2]
[312131705,1705666239535,-2292.0,0.00022986,2]
[312131706,1705666239548,-262.90756957,0.00022993,2]
[312131707,1705666239562,-155.70749314,0.00022994,2]
[312131708,1705666239574,-5393.28,0.00022994,2]
[312131709,1705666239586,-3394.92,0.00022994,2]
[312131710,1705666239599,-2245.7,0.00022994,2]
[312131711,1705666239615,-2640.33,0.00022994,5]
[312131712,1705666239628,-1564.92,0.00022994,2]
[312131713,1705666239640,-1643.94,0.00022994,2]
[312131714,1705666239654,-13898.48656645,0.00022994,2]
[312131715,1705666239673,-1700.09343355,0.00022994,2]
[312131716,1705666239685,-19754.48,0.00022994,2]
[312131717,1705666239698,-11426.74,0.00022994,2]
[312131718,1705666239711,-1205.31,0.00022994,2]
[312131719,1705666239722,-500.0,0.00022994,2]
[312131720,1705666239735,-5092.13,0.00022994,2]
[312131721,1705666239747,-2505.92,0.00022994,2]
[312131722,1705666239759,-2542.57,0.00022994,2]
[312131723,1705666239771,-1214.32,0.00022994,2]
[312131724,1705666239784,-2516.11,0.00022994,2]
[312131725,1705666239795,-5945.8,0.00022994,2]
[312131726,1705666239808,-47078.31,0.00022994,2]
[312131727,1705666239820,-753.07,0.00022994,2]
[312131728,1705666239832,-3287.55,0.00022994,2]
[312131729,1705666239845,-2887.71,0.00022994,2]
[312131730,1705666239857,-1180.41,0.00022994,2]
[312131731,1705666239870,-1115.89,0.00022994,2]
[312131732,1705666239882,-4394.09,0.00022994,2]
[312131733,1705666239895,-500.0,0.00022994,2]
[312131734,1705666239907,-1102.23,0.00022994,2]
[312131735,1705666239926,-1589.65,0.00022994,2]
[312131736,1705666239938,-34180.49,0.00022994,2]
[312131737,1705666239950,-2952.43,0.00022994,2]
[312131738,1705666239962,-892.05,0.00022994,2]
[312131739,1705666239976,-2360.62,0.00022994,2]
[312131740,1705666239989,-2662.92,0.00022994,2]
[312131741,1705666240000,-4108.99,0.00022994,2]
[312131742,1705666240012,-155.72417667,0.00022995,2]
[312131743,1705666240026,-571.26644582,0.00022995,2]
[312131744,1705666240039,-155.49445033,0.00022995,2]
[312131745,1705666240052,-325.82630838,0.00022995,2]
[312131746,1705666240063,-372.59817034,0.00022995,2]
[312131747,1705666240075,-155.21031866,0.00022995,2]
[312131748,1705666240087,-384.58030079,0.00022995,2]
[312131749,1705666240099,-301.25336037,0.00022995,2]
[312131750,1705666240111,-500.0,0.00022995,2]
[312131751,1705666240123,-500.0,0.00022995,2]
[312131752,1705666240136,-500.0,0.00022995,2]
[312131753,1705666240147,-500.0,0.00022995,2]
[312131754,1705666240158,-500.0,0.00022995,2]
[312131755,1705666240171,-500.0,0.00022995,2]
[312131756,1705666240183,-500.0,0.00022995,2]
[312131757,1705666240195,-500.0,0.00022995,2]
[312131758,1705666240208,-500.0,0.00022995,2]
[312131759,1705666240220,-500.0,0.00022995,2]
[312131760,1705666240231,-500.0,0.00022995,2]
[312131761,1705666240244,-500.0,0.00022995,2]
[312131762,1705666240258,-500.0,0.00022995,2]
[312131763,1705666240270,-507.80056981,0.00022995,2]
[312131764,1705666240282,-500.0,0.00022995,2]
[312131765,1705666240293,-500.0,0.00022995,2]
[312131766,1705666240306,-500.0,0.00022995,2]
[312131767,1705666240318,-500.0,0.00022995,2]
[312131768,1705666240331,-500.0,0.00022995,2]
[312131769,1705666240343,-500.0,0.00022995,2]
[312131770,1705666240355,-500.0,0.00022995,2]
[312131771,1705666240367,-500.0,0.00022995,2]
[312131772,1705666240379,-598.8,0.00022995,2]
[312131773,1705666240391,-500.0,0.00022995,2]
[312131774,1705666240402,-500.0,0.00022995,2]
[312131775,1705666240413,-500.0,0.00022995,2]
[312131776,1705666240425,-500.0,0.00022995,2]
[312131777,1705666240436,-500.0,0.00022995,2]
[312131778,1705666240448,-500.0,0.00022995,2]
[312131779,1705666240459,-503.60810719,0.00022995,2]
[312131780,1705666240472,-543.5,0.00022995,2]
[312131781,1705666240483,-500.0,0.00022995,2]
[312131782,1705666240495,-500.0,0.00022995,2]
[312131783,1705666240508,-407.07668527,0.00022995,2]
[312131784,1705666240521,-500.0,0.00022995,2]
[312131785,1705666240535,-500.0,0.00022995,2]
[312131786,1705666240546,-500.0,0.00022995,2]
[312131787,1705666240558,-628.05,0.00022995,2]
[312131788,1705666240570,-534.59256604,0.00022995,2]
[312131789,1705666240582,-500.0,0.00022995,2]
[312131790,1705666240594,-500.0,0.00022995,2]
[312131791,1705666240606,-500.0,0.00022995,2]
[312131792,1705666240620,-500.0,0.00022995,2]
[312131793,1705666240632,-960.21,0.00022995,2]
[312131794,1705666240644,-1176.38,0.00022995,2]
[312131795,1705666240655,-500.0,0.00022995,2]
[312131796,1705666240667,-500.0,0.00022995,2]
[312131797,1705666240679,-577.3,0.00022995,2]
[312131798,1705666240692,-500.0,0.00022995,2]
[312131799,1705666240704,-500.0,0.00022995,2]
[312131800,1705666240717,-589.13,0.00022995,2]
[312131801,1705666240729,-510.45681295,0.00022995,2]
[312131802,1705666240741,-907.94,0.00022995,2]
[312131803,1705666240752,-915.25,0.00022995,2]
[312131804,1705666240763,-953.2,0.00022995,2]
[312131805,1705666240775,-554.43,0.00022995,2]
[312131806,1705666240787,-500.0,0.00022995,2]
[312131807,1705666240799,-500.0,0.00022995,2]
[312131808,1705666240810,-500.0,0.00022995,2]
[312131809,1705666240823,-592.33,0.00022995,2]
[312131810,1705666240835,-502.27788379,0.00022995,2]
[312131811,1705666240847,-500.0,0.00022995,2]
[312131812,1705666240859,-500.0,0.00022995,2]
[312131813,1705666240872,-865.14,0.00022995,2]
[312131814,1705666240884,-500.0,0.00022995,2]
[312131815,1705666240895,-500.0,0.00022995,2]
[312131816,1705666240906,-500.0,0.00022995,2]
[312131817,1705666240918,-500.0,0.00022995,2]
[312131818,1705666240930,-694.6,0.00022995,2]
[312131819,1705666240941,-500.0,0.00022995,2]
[312131820,1705666240954,-500.0,0.00022995,2]
[312131821,1705666240965,-500.0,0.00022995,2]
[312131822,1705666240976,-500.0,0.00022995,2]
[312131823,1705666240988,-512.84257404,0.00022995,2]
[312131824,1705666240999,-699.21,0.00022995,2]
[312131825,1705666241011,-634.28,0.00022995,2]
[312131826,1705666241023,-500.0,0.00022995,2]
[312131827,1705666241035,-364.76119587,0.00022995,2]
[312131828,1705666241048,-500.0,0.00022995,2]
[312131829,1705666241059,-510.56594999,0.00022995,2]
[312131830,1705666241071,-512.41779573,0.00022995,2]
[312131831,1705666241084,-506.52796086,0.00022995,2]
[312131832,1705666241096,-500.63975978,0.00022995,2]
[312131833,1705666241107,-1018.36,0.00022995,2]
[312131834,1705666241122,-988.95,0.00022995,2]
[312131835,1705666241135,-700.19,0.00022995,2]
[312131836,1705666241147,-500.0,0.00022995,2]
[312131837,1705666241159,-167.68074467,0.00022995,2]
[312131838,1705666241170,-500.0,0.00022995,2]
[312131839,1705666241183,-500.0,0.00022995,2]
[312131840,1705666241195,-500.0,0.00022995,2]
[312131841,1705666241209,-500.0,0.00022995,2]
[312131842,1705666241221,-727.89,0.00022995,2]
[312131843,1705666241233,-500.0,0.00022995,2]
[312131844,1705666241246,-500.0,0.00022995,2]
[312131845,1705666241258,-1090.17,0.00022995,2]
[312131846,1705666241269,-500.0,0.00022995,2]
[312131847,1705666241282,-500.0,0.00022995,2]
[312131848,1705666241294,-514.26808957,0.00022995,2]
[312131849,1705666241306,-500.0,0.00022995,2]
[312131850,1705666241318,-500.0,0.00022995,2]
[312131851,1705666241329,-500.0,0.00022995,2]
[312131852,1705666241341,-507.74940778,0.00022995,2]
[312131853,1705666241354,-503.12319152,0.00022995,2]
[312131854,1705666241367,-500.82299405,0.00022995,2]
[312131855,1705666241378,-505.77191836,0.00022995,2]
[312131856,1705666241389,-500.0,0.00022995,2]
[312131857,1705666241401,-500.0,0.00022995,2]
[312131858,1705666241412,-1289.78,0.00022995,2]
[312131859,1705666241424,-500.0,0.00022995,2]
[312131860,1705666241436,-501.55436305,0.00022995,2]
[312131861,1705666241448,-502.52551678,0.00022995,2]
[312131862,1705666241461,-500.0,0.00022995,2]
[312131863,1705666241472,-502.41715889,0.00022995,2]
[312131864,1705666241484,-500.0,0.00022995,2]
[312131865,1705666241497,-1120.95,0.00022995,2]
[312131866,1705666241509,-505.97389697,0.00022995,2]
[312131867,1705666241522,-500.0,0.00022995,2]
[312131868,1705666241534,-504.70071708,0.00022995,2]
[312131869,1705666241550,-1300.86,0.00022995,2]
[312131870,1705666241562,-500.0,0.00022995,2]
[312131871,1705666241575,-698.1,0.00022995,2]
[312131872,1705666241588,-500.0,0.00022995,2]
[312131873,1705666241600,-906.66,0.00022995,2]
[312131874,1705666241613,-500.0,0.00022995,2]
[312131875,1705666241625,-500.0,0.00022995,2]
[312131876,1705666241953,-919.21,0.00022995,2]
[312131877,1705666241966,-500.0,0.00022995,2]
[312131878,1705666241977,-500.0,0.00022995,2]
[312131879,1705666241989,-500.0,0.00022995,2]
[312131880,1705666242001,-545.64,0.00022995,2]
[312131881,1705666242014,-209.75666271,0.00022995,2]
[312131882,1705666242026,-500.0,0.00022995,2]
[312131883,1705666242039,-500.0,0.00022995,2]
[312131884,1705666242050,-500.0,0.00022995,2]
[312131885,1705666242061,-507.19618776,0.00022995,2]
[312131886,1705666242073,-1384.85,0.00022995,2]
[312131887,1705666242085,-500.0,0.00022995,2]
[312131888,1705666242097,-500.0,0.00022995,2]
[312131889,1705666242109,-977.33,0.00022995,2]
[312131890,1705666242120,-500.0,0.00022995,2]
[312131891,1705666242132,-500.0,0.00022995,2]
[312131892,1705666242143,-500.0,0.00022995,2]
[312131893,1705666242155,-512.13512293,0.00022995,2]
[312131894,1705666242168,-500.0,0.00022995,2]
[312131895,1705666242180,-501.90841,0.00022995,2]
[312131896,1705666242192,-1000.0,0.00022995,2]
[312131897,1705666242204,-1012.68,0.00022995,2]
[312131898,1705666242216,-500.0,0.00022995,2]
[312131899,1705666242228,-519.08948408,0.00022995,2]
[312131900,1705666242241,-500.0,0.00022995,2]
[312131901,1705666242251,-500.0,0.00022995,2]
[312131902,1705666242263,-500.0,0.00022995,2]
[312131903,1705666242274,-500.0,0.00022995,2]
[312131904,1705666242286,-500.0,0.00022995,2]
[312131905,1705666242298,-1136.47,0.00022995,2]
[312131906,1705666242309,-500.0,0.00022995,2]
[312131907,1705666242321,-785.17,0.00022995,2]
[312131908,1705666242333,-500.0,0.00022995,2]
[312131909,1705666242344,-500.0,0.00022995,2]
[312131910,1705666242356,-504.84621267,0.00022995,2]
[312131911,1705666242367,-500.0,0.00022995,2]
[312131912,1705666242379,-500.0,0.00022995,2]
[312131913,1705666242390,-500.0,0.00022995,2]
[312131914,1705666242402,-504.3656595,0.00022995,2]
[312131915,1705666242413,-648.64,0.00022995,2]
[312131916,1705666242423,-500.0,0.00022995,2]
[312131917,1705666242435,-1005.41,0.00022995,2]
[312131918,1705666242447,-500.0,0.00022995,2]
[312131919,1705666242459,-500.0,0.00022995,2]
[312131920,1705666242470,-500.0,0.00022995,2]
[312131921,1705666242482,-517.37665117,0.00022995,2]
[312131922,1705666242493,-500.0,0.00022995,2]
[312131923,1705666242505,-500.0,0.00022995,2]
[312131924,1705666242516,-730.87,0.00022995,2]
[312131925,1705666242528,-756.0,0.00022995,2]
[312131926,1705666242542,-709.1,0.00022995,2]
[312131927,1705666242553,-681.37,0.00022995,2]
[312131928,1705666242565,-500.0,0.00022995,2]
[312131929,1705666242578,-500.0,0.00022995,2]
[312131930,1705666242589,-500.0,0.00022995,2]
[312131931,1705666242600,-500.0,0.00022995,2]
[312131932,1705666242611,-500.0,0.00022995,2]
[312131933,1705666242623,-626.37,0.00022995,2]
[312131934,1705666242634,-500.0,0.00022995,2]
[312131935,1705666242647,-500.0,0.00022995,2]
[312131936,1705666242660,-500.0,0.00022995,2]
[312131937,1705666242672,-513.82520126,0.00022995,2]
[312131938,1705666242684,-553.62979776,0.00022995,2]
[312131939,1705666242696,-500.0,0.00022995,2]
[312131940,1705666242708,-500.0,0.00022995,2]
[312131941,1705666242720,-500.0,0.00022995,2]
[312131942,1705666242732,-510.87968851,0.00022995,2]
[312131943,1705666242745,-500.0,0.00022995,2]
[312131944,1705666242757,-500.0,0.00022995,2]
[312131945,1705666242769,-926.69,0.00022995,2]
[312131947,1705666242781,-500.0,0.00022995,2]
[312131949,1705666242793,-500.0,0.00022995,2]
[312131951,1705666242805,-500.0,0.00022995,2]
[312131952,1705666242817,-617.42,0.00022995,2]
[312131953,1705666242828,-500.0,0.00022995,2]
[312131954,1705666242840,-500.0,0.00022995,2]
[312131956,1705666242854,-500.0,0.00022995,2]
[312131957,1705666242866,-531.0935368,0.00022995,2]
[312131958,1705666242878,-618.52,0.00022995,2]
[312131959,1705666242890,-500.0,0.00022995,2]
[312131960,1705666242901,-175.31652727,0.00022995,2]
[312131961,1705666242913,-500.0,0.00022995,2]
[312131962,1705666242926,-502.87007331,0.00022995,2]
[312131963,1705666242938,-500.0,0.00022995,2]
[312131964,1705666242950,-500.0,0.00022995,2]
[312131965,1705666242961,-500.0,0.00022995,2]
[312131966,1705666242973,-500.0,0.00022995,2]
[312131967,1705666242986,-530.48,0.00022995,2]
[312131968,1705666242997,-500.0,0.00022995,7]
[312131969,1705666243009,-500.0,0.00022995,2]
[312131970,1705666243020,-221.6514265,0.00022995,2]
[312131971,1705666243032,-500.0,0.00022995,2]
[312131972,1705666243044,-503.84188726,0.00022995,2]
[312131973,1705666243056,-500.0,0.00022995,2]
[312131974,1705666243068,-500.0,0.00022995,2]
[312131975,1705666243079,-500.0,0.00022995,2]
[312131976,1705666243091,-500.0,0.00022995,2]
[312131977,1705666243102,-596.7,0.00022995,2]
[312131978,1705666243114,-500.0,0.00022995,2]
[312131979,1705666243125,-869.05,0.00022995,2]
[312131980,1705666243136,-651.28,0.00022995,2]
[312131981,1705666243148,-500.0,0.00022995,2]
[312131982,1705666243159,-813.98,0.00022995,2]
[312131983,1705666243171,-500.0,0.00022995,2]
[312131984,1705666243183,-858.03,0.00022995,2]
[312131985,1705666243194,-1255.83,0.00022995,2]
[312131986,1705666243206,-502.78586201,0.00022995,2]
[312131987,1705666243217,-500.0,0.00022995,2]
[312131988,1705666243229,-521.33310348,0.00022995,2]
[312131989,1705666243240,-500.0,0.00022995,2]
[312131990,1705666243251,-500.0,0.00022995,2]
[312131991,1705666243263,-503.53703165,0.00022995,2]
[312131992,1705666243274,-500.0,0.00022995,2]
[312131993,1705666243285,-500.0,0.00022995,2]
[312131994,1705666243296,-500.0,0.00022995,2]
[312131995,1705666243307,-500.0,0.00022995,2]
[312131996,1705666243319,-500.0,0.00022995,2]
[312131997,1705666243330,-500.0,0.00022995,2]
[312131998,1705666243341,-1127.81,0.00022995,2]
[312131999,1705666243353,-737.1,0.00022995,2]
[312132000,1705666243365,-174.05978527,0.00022995,2]
[312132001,1705666243376,-508.51904102,0.00022995,2]
[312132002,1705666243388,-500.0,0.00022995,2]
[312132003,1705666243400,-933.45,0.00022995,2]
[312132004,1705666243411,-500.0,0.00022995,2]
[312132005,1705666243423,-545.31407051,0.00022995,2]
[312132006,1705666243434,-1285.45,0.00022995,2]
[312132007,1705666243443,-799.51,0.00022995,2]
[312132008,1705666243455,-500.0,0.00022995,2]
[312132009,1705666243468,-500.0,0.00022995,2]
[312132010,1705666243479,-520.26020565,0.00022995,2]
[312132011,1705666243492,-516.56316659,0.00022995,2]
[312132012,1705666243504,-500.0,0.00022995,2]
[312132013,1705666243515,-293.02504965,0.00022995,2]
[312132014,1705666243527,-500.0,0.00022995,2]
[312132015,1705666243539,-500.0,0.00022995,2]
[312132016,1705666243554,-1604.6,0.00022995,2]
[312132017,1705666243566,-500.0,0.00022995,2]
[312132018,1705666243577,-500.0,0.00022995,2]
[312132019,1705666243591,-565.02,0.00022995,2]
[312132020,1705666243603,-500.0,0.00022995,2]
[312132021,1705666243616,-500.0,0.00022995,2]
[312132022,1705666243630,-500.0,0.00022995,2]
[312132023,1705666243641,-500.0,0.00022995,2]
[312132024,1705666243654,-500.0,0.00022995,2]
[312132025,1705666243666,-500.0,0.00022995,2]
[312132026,1705666243678,-520.46,0.00022995,2]
[312132027,1705666243690,-500.0,0.00022995,2]
[312132028,1705666243702,-500.0,0.00022995,2]
[312132029,1705666243713,-500.0,0.00022995,2]
[312132030,1705666243725,-500.0,0.00022995,2]
[312132031,1705666243736,-507.85475515,0.00022995,2]
[312132032,1705666243749,-500.0,0.00022995,2]
[312132033,1705666243761,-500.0,0.00022995,2]
[312132034,1705666243772,-728.86,0.00022995,2]
[312132035,1705666243785,-500.0,0.00022995,2]
[312132036,1705666243797,-501.23266239,0.00022995,2]
[312132037,1705666243809,-500.0,0.00022995,2]
[312132038,1705666243820,-1264.15,0.00022995,2]
[312132039,1705666243832,-500.0,0.00022995,2]
[312132040,1705666243843,-500.0,0.00022995,2]
[312132041,1705666243854,-649.55,0.00022995,2]
[312132042,1705666243867,-242.89368429,0.00022995,2]
[312132043,1705666243878,-500.0,0.00022995,2]
[312132044,1705666243889,-501.79406976,0.00022995,2]
[312132045,1705666243901,-522.52396058,0.00022995,2]
[312132046,1705666243912,-511.23,0.00022995,2]
[312132047,1705666243923,-500.0,0.00022995,2]
[312132048,1705666243935,-977.19,0.00022995,2]
[312132049,1705666243946,-508.19904134,0.00022995,2]
[312132050,1705666243958,-500.0,0.00022995,2]
[312132051,1705666243970,-1528.44,0.00022995,2]
[312132052,1705666243982,-500.0,0.00022995,2]
[312132053,1705666243994,-500.0,0.00022995,2]
[312132054,1705666244005,-501.83508985,0.00022995,2]
[312132055,1705666244017,-500.0,0.00022995,2]
[312132056,1705666244028,-500.0,0.00022995,2]
[312132057,1705666244040,-500.0,0.00022995,2]
[312132058,1705666244052,-500.0,0.00022995,2]
[312132059,1705666244064,-500.0,0.00022995,2]
[312132060,1705666244075,-1679.82,0.00022995,2]
[312132061,1705666244088,-500.0,0.00022995,2]
[312132062,1705666244100,-500.0,0.00022995,2]
[312132063,1705666244112,-500.0,0.00022995,2]
[312132064,1705666244124,-500.0,0.00022995,2]
[312132065,1705666244136,-627.3,0.00022995,2]
[312132066,1705666244147,-500.0,0.00022995,2]
[312132067,1705666244159,-504.64532564,0.00022995,2]
[312132068,1705666244171,-500.0,0.00022995,2]
[312132069,1705666244182,-500.0,0.00022995,2]
[312132070,1705666244193,-500.0,0.00022995,2]
[312132071,1705666244205,-500.0,0.00022995,2]
[312132072,1705666244216,-1835.52,0.00022995,2]
[312132073,1705666244228,-543.11331952,0.00022995,2]
[312132074,1705666244240,-500.0,0.00022995,2]
[312132075,1705666244442,-9652.13,0.00022995,2]
[312132076,1705666244453,-515.26,0.00022995,2]
[312132077,1705666244464,-500.0,0.00022995,2]
[312132078,1705666244476,-500.0,0.00022995,2]
[312132079,1705666244487,-500.0,0.00022995,2]
[312132080,1705666244498,-500.0,0.00022995,2]
[312132081,1705666244509,-500.0,0.00022995,2]
[312132082,1705666244521,-500.0,0.00022995,2]
[312132083,1705666244533,-1150.41,0.00022995,2]
[312132084,1705666244549,-500.0,0.00022995,2]
[312132085,1705666244560,-500.0,0.00022995,2]
[312132086,1705666244572,-1579.00001713,0.00022995,2]
[312132087,1705666245346,-312.52309554,0.00022995,2]
[312132088,1705666245375,-511.79085552,0.00022995,2]
[312132089,1705666246822,-500.0,0.00022979,2]
[312132090,1705666246834,-2282.04603181,0.00022995,2]
[312132091,1705666246845,-500.0,0.00022995,2]
[312132092,1705666246856,-500.0,0.00022995,2]
[312132093,1705666246868,-500.0,0.00022995,2]
[312132094,1705666246879,-500.0,0.00022995,2]
[312132095,1705666246891,-500.0,0.00022995,2]
[312132096,1705666246903,-500.0,0.00022995,2]
[312132097,1705666246914,-1244.76,0.00022995,2]
[312132098,1705666246926,-2001.17,0.00022995,2]
[312132099,1705666246937,-836.26,0.00022995,2]
[312132100,1705666246949,-500.0,0.00022995,2]
[312132101,1705666246960,-643.71,0.00022995,2]
[312132102,1705666246971,-500.0,0.00022995,2]
[312132103,1705666246982,-500.0,0.00022995,2]
[312132104,1705666246994,-500.0,0.00022995,2]
[312132105,1705666247006,-500.0,0.00022995,2]
[312132106,1705666247017,-500.88116926,0.00022995,2]
[312132107,1705666247031,-500.0,0.00022995,2]
[312132108,1705666247043,-500.0,0.00022995,2]
[312132109,1705666247055,-500.0,0.00022995,2]
[312132110,1705666247067,-500.0,0.00022995,2]
[312132111,1705666247079,-518.71986242,0.00022995,2]
[312132112,1705666247090,-500.0,0.00022995,2]
[312132113,1705666247102,-673.35,0.00022995,2]
[312132114,1705666247115,-500.0,0.00022995,2]
[312132115,1705666247126,-500.0,0.00022995,2]
[312132116,1705666247139,-504.87,0.00022995,2]
[312132117,1705666247150,-500.0,0.00022995,2]
[312132118,1705666247161,-771.28,0.00022995,2]
[312132119,1705666247172,-500.0,0.00022995,2]
[312132120,1705666247183,-500.0,0.00022995,2]
[312132121,1705666247195,-1538.26,0.00022995,2]
[312132122,1705666247207,-5075.2,0.00022995,2]
[312132123,1705666247218,-500.0,0.00022995,2]
[312132124,1705666247235,-1267.24,0.00022995,2]
[312132125,1705666247246,-847.45,0.00022995,2]
[312132126,1705666247257,-1264.86,0.00022995,2]
[312132127,1705666247268,-500.0,0.00022995,2]
[312132128,1705666247279,-500.0,0.00022995,2]
[312132129,1705666247290,-1609.06,0.00022995,2]
[312132130,1705666247302,-500.0,0.00022995,2]
[312132131,1705666247314,-500.0,0.00022995,2]
[312132132,1705666247327,-500.0,0.00022995,2]
[312132133,1705666247338,-500.0,0.00022995,2]
[312132134,1705666247349,-500.0,0.00022995,2]
[312132135,1705666247361,-502.62394081,0.00022995,2]
[312132136,1705666247374,-500.0,0.00022995,2]
[312132137,1705666247385,-502.10891709,0.00022995,2]
[312132138,1705666247396,-990.0,0.00022995,2]
[312132139,1705666247408,-500.0,0.00022995,2]
[312132140,1705666247419,-500.0,0.00022995,2]
[312132141,1705666247431,-500.0,0.00022995,2]
[312132142,1705666247442,-510.94199776,0.00022995,2]
[312132143,1705666247453,-3252.2,0.00022995,2]
[312132144,1705666247465,-502.1653127,0.00022995,2]
[312132145,1705666247477,-503.12804837,0.00022995,2]
[312132146,1705666247489,-500.0,0.00022995,2]
[312132147,1705666247501,-500.0,0.00022995,2]
[312132148,1705666247512,-500.0,0.00022995,2]
[312132149,1705666247524,-500.0,0.00022995,2]
[312132150,1705666247536,-500.0,0.00022995,2]
[312132151,1705666247548,-500.0,0.00022995,2]
[312132152,1705666247559,-3626.74,0.00022995,2]
[312132153,1705666247572,-500.0,0.00022995,2]
[312132154,1705666247587,-500.0,0.00022995,2]
[312132155,1705666247600,-500.0,0.00022995,2]
[312132156,1705666247611,-770.99,0.00022995,2]
[312132157,1705666247626,-758.67,0.00022995,2]
[312132158,1705666247638,-500.0,0.00022995,2]
[312132159,1705666247649,-502.51637495,0.00022995,2]
[312132160,1705666247661,-500.0,0.00022995,2]
[312132161,1705666247673,-500.0,0.00022995,2]
[312132162,1705666247685,-7664.11,0.00022995,2]
[312132163,1705666247697,-5089.66129603,0.00022995,2]
[312132164,1705666247708,-500.0,0.00022995,2]
[312132165,1705666247720,-11303.55,0.00022995,2]
[312132166,1705666247732,-219.19585489,0.00022995,2]
[312132167,1705666247744,-902.16,0.00022995,2]
[312132168,1705666247755,-500.0,0.00022995,2]
[312132169,1705666247768,-525.74949102,0.00022995,2]
[312132170,1705666247779,-500.0,0.00022995,2]
[312132171,1705666247790,-500.0,0.00022995,2]
[312132172,1705666247801,-500.0,0.00022995,2]
[312132173,1705666247813,-500.0,0.00022995,2]
[312132174,1705666247824,-6250.14,0.00022995,2]
[312132175,1705666247837,-500.0,0.00022995,2]
[312132176,1705666247849,-500.0,0.00022995,2]
[312132177,1705666247861,-500.0,0.00022995,2]
[312132178,1705666247873,-500.0,0.00022995,2]
[312132179,1705666247885,-500.0,0.00022995,2]
[312132180,1705666247896,-500.0,0.00022995,2]
[312132181,1705666247907,-295.34393892,0.00022995,2]
[312132182,1705666247919,-526.51622661,0.00022995,2]
[312132183,1705666247931,-500.0,0.00022995,2]
[312132184,1705666247943,-664.96,0.00022995,2]
[312132185,1705666247954,-714.13,0.00022995,2]
[312132186,1705666247965,-462.13,0.00022995,2]
[312132187,1705666247978,-868.24,0.00022995,2]
[312132188,1705666247989,-500.0,0.00022995,2]
[312132189,1705666247999,-2960.31,0.00022995,2]
[312132190,1705666248011,-500.0,0.00022995,2]
[312132191,1705666248022,-500.0,0.00022995,2]
[312132192,1705666248034,-9834.44,0.00022995,2]
[312132193,1705666248045,-500.0,0.00022995,2]
[312132194,1705666248056,-500.0,0.00022995,2]